Cogmind - Beta 16.1 @@@ ROGUE MODE // 2026.04.09 @ 00:45:43 Player: Ammie Result: Destroyed by H-55 Commando with Assault Rifle Performance ------------- Evolutions (3) 1500 Regions Visited (4) 800 Robots Destroyed (102) 510 Value Destroyed (2555) 2555 Prototype IDs (6) 120 Alien Tech Used (0) 0 Bonus (100) 100 TOTAL SCORE: 5585 Bonus ------- High Alert Combat Kills 25 Follower Combat Kills 75 Cogmind --------- Core Integrity 0/700 Matter 255/300 Energy 150/150 System Corruption 3% Temperature Hot (234) Movement Flying (99) Ox1 Location -7/Factory Parts ------- > --- POWER (2) -------- Micro Nuclear Core > --- PROPULSION (4) --- Cesium-ion Thruster Cooled VTOL Module > --- UTILITY (5) ------ Small Storage Unit Advanced Targeting Computer Advanced Targeting Computer > --- WEAPON (2) ------- Precision Shock Rifle Cooled Pulse Rifle > --- INVENTORY (8) ---- Deuterium Engine Improved Deuterium Engine Cryofiber Web Weapon Cycler Reaction Control System Lightning Gun Precision Shock Rifle Peak State ------------ > --- POWER ------------ Deuterium Engine Micro Nuclear Core > --- PROPULSION ------- Flight Unit Cesium-ion Thruster Cesium-ion Thruster Cooled VTOL Module > --- UTILITY ---------- Improved Cooling System Small Storage Unit Advanced Weight Redist. System Advanced Targeting Computer Advanced Targeting Computer > --- WEAPON ----------- Precision Shock Rifle Cooled Pulse Rifle > --- INVENTORY -------- Cryofiber Web Advanced Targeting Computer Advanced Targeting Computer Transmission Jammer Reaction Control System Precision Shock Rifle Precision Shock Rifle [Rating: 45] Favorites ----------- Power Light Deuterium Engine Engine Light Deuterium Engine Power Core Micro Nuclear Core Propulsion Flight Unit Treads Armored Treads Leg Aluminum Leg Flight Unit Flight Unit Utility Advanced Targeting Computer Device Heat Sink Storage Small Storage Unit Processor Advanced Targeting Computer Weapon EM Pulse Cannon Energy Gun Medium Laser Energy Cannon EM Pulse Cannon Ballistic Gun Light Assault Rifle Build | -11 -10 -9 -8 -7 ------- Run | Yrd Mat Mat Mat Fac Slots Evolved 6 | . . 2 2 2 Power 1 | . . . . 1 Propulsion 2 | . . . 2 . Utility 3 | . . 2 . 1 Weapon . | . . . . . Parts Attached 70 | 6 7 11 25 21 Power 10 | 1 1 1 3 4 Engine 5 | 1 1 1 2 . Core 5 | . . . 1 4 Reactor . | . . . . . Propulsion 23 | 2 2 2 12 5 Treads 2 | . . 2 . . Leg 5 | 2 2 . 1 . Wheel . | . . . . . Hover . | . . . . . Flight 16 | . . . 11 5 Utility 12 | 1 2 3 2 4 Device 7 | . 2 . 2 3 Storage 1 | 1 . . . . Processor 4 | . . 3 . 1 Hackware . | . . . . . Protection . | . . . . . Artifact . | . . . . . Weapon 25 | 2 2 5 8 8 Energy Gun 16 | 2 . . 8 6 Energy Cannon 7 | . 1 4 . 2 Ballistic Gun 2 | . 1 1 . . Ballistic Cannon . | . . . . . Launcher . | . . . . . Special Weapon . | . . . . . Impact Weapon . | . . . . . Slashing Weapon . | . . . . . Piercing Weapon . | . . . . . Special Melee Weapon . | . . . . . Unidentified Prototypes 6 | . . 1 1 4 Parts Lost 24 | . 1 . 10 13 Power 4 | . . . 2 2 Propulsion 10 | . . . 5 5 Utility 4 | . . . . 4 Weapon 6 | . 1 . 3 2 Highest Loss Streak 6 | . 1 . 5 6 To Critical Strikes . | . . . . . Average Backups 6 | . 5 7 6 7 Power 1 | . 1 1 . 1 Propulsion 1 | . 1 3 . . Utility 2 | . . 2 4 4 Weapon 1 | . . . 1 2 Tool/Special . | . . . . . Unused Backups 21 | . . 6 4 11 Power 3 | . . 2 . 1 Propulsion 3 | . . 3 . . Utility 7 | . . . 2 5 Weapon 8 | . . 1 2 5 Tool/Special . | . . . . . Average Slot Usage (%) 92 | . 98 99 80 87 Engine 8 | . 14 11 8 . Core 2 | . . . . 8 Treads 6 | . . 21 . . Leg 7 | . 28 . 3 . Flight 10 | . . . 16 28 Device 11 | . 12 11 9 11 Storage 10 | . 14 11 9 7 Processor 14 | . . 21 18 14 Energy Gun 9 | . 15 . 14 10 Energy Cannon 9 | . 7 21 1 3 Ballistic Gun 1 | . 5 . . . Peak Build Rating 45 | 6 7 25 30 45 Average Rating 23 | 4 6 24 23 36 On Entrance 12 | . 6 7 25 25 Avg Prop Armor Cover (%) 14 | . . . . 14 Naked Turns . | . . . . . Heaviest Build 30 | 14 17 23 23 30 Greatest Support 40 | 20 20 40 24 30 Greatest Overweight (x) 7 | 1 . 1 6 7 Average Overweight (x) . | . . . . . Largest Inventory Capacity 8 | 8 8 8 8 8 Average Capacity 7 | 7 8 8 8 8 Most Carried 8 | 1 8 8 8 8 Average Carried 6 | . 5 7 6 7 Final Capacity 8 | 8 8 8 8 8 Final Carried 8 | 1 8 8 8 7 Class Distribution -------------------- 62% | Mutant 22% | Sprinter 11% | Scavenger-Mutant 3% | Scavenger-Sprinter Dominant Class ---------------- Mutant | -10/Materials Mutant | -9/Materials Mutant | -8/Materials Sprinter | -7/Factory Resources | -11 -10 -9 -8 -7 ----------- Run | Yrd Mat Mat Mat Fac Matter Collected 1007 | 179 160 120 309 239 Remotely . | . . . . . Salvage Created 3993 | . 620 900 1237 1236 Parts 240 | . 40 57 78 65 Haulers Intercepted 14 | . 2 4 6 2 Recyclers Shooed 2 | . 1 . . 1 Parts Field Recycled . | . . . . . Retrieved Matter . | . . . . . Parts Self-Destructed . | . . . . . Prevented . | . . . . . Parts Restored . | . . . . . Kills | -11 -10 -9 -8 -7 ------- Run | Yrd Mat Mat Mat Fac Combat Hostiles Destroyed 63 | . 14 13 19 17 Melee 1 | . . 1 . . Guns 34 | . 6 . 17 11 Cannons 26 | . 8 11 2 5 AOE 1 | . . . . 1 Classes Destroyed 12 | . 5 3 2 2 Worker 4 | . 1 . 1 2 Builder 2 | . . . 1 1 Hauler 14 | . 2 4 6 2 Recycler 3 | . . . 1 2 Operator 4 | . . 2 . 2 Watcher 12 | . 3 4 4 1 Swarmer 20 | . 6 4 7 3 Grunt 31 | . 8 4 7 12 Brawler 1 | . . 1 . . Sentry 9 | . . 4 5 . Specialist 1 | . . . . 1 Hunter 1 | . . . . 1 Best Kill Streak 7 | . 7 4 6 3 Combat Bots Only 6 | . 5 4 6 3 Max Kills in Single Turn 2 | . 2 1 2 1 Gunslinging 1 | . . . 1 . Exploded 1 | . . . . 1 Melee 1 | . . 1 . . Uniques/NPCs Destroyed . | . . . . . Combat | -11 -10 -9 -8 -7 -------- Run | Yrd Mat Mat Mat Fac Hostile Shots Fired 495 | . 79 89 124 203 Missed 213 | . 27 32 48 106 Hits 282 | . 52 57 76 97 Projectile 282 | . 52 57 76 97 AOE 1 | . . . . 1 Critical Strikes 6 | . . . 3 3 Part Disruptions 1 | . . . . 1 Damage Taken 3859 | . 517 680 1037 1625 Core 1236 | . 121 157 251 707 Absorbed by Shields . | . . . . . Core Remaining (%) 66 | 100 51 60 54 . Volleys Fired 280 | . 68 37 86 89 Largest 2 | . 2 2 2 2 Hottest 155 | . 110 126 126 155 Shots Fired 502 | . 124 69 152 157 Gun 324 | . 68 . 143 113 Cannon 178 | . 56 69 9 44 Launcher . | . . . . . Special . | . . . . . Kinetic 9 | . 9 . . . Thermal 316 | . 115 . 131 70 Explosive . | . . . . . Electromagnetic 177 | . . 69 21 87 Robot Hit Streak 34 | . 11 17 19 34 Robot Miss Streak 9 | . 9 2 4 2 Penetration Max . | . . . . . Secondary Targets 4 | . . . 3 1 Max Gunslinging Chain 1 | . . . 1 1 Shots Hit Robots 324 | . 58 48 108 110 Core Hits 143 | . 29 21 47 46 Critical Kills . | . . . . . Critical Parts Destroyed . | . . . . . Critical Strikes 10 | . . 1 8 1 Burn 7 | . . . 7 . Corrupt 3 | . . 1 1 1 Melee Attacks . | . . . . . Impact . | . . . . . Slashing . | . . . . . Piercing . | . . . . . Sneak Attacks . | . . . . . Combat Hostiles . | . . . . . Follow-up Attacks . | . . . . . Damage Inflicted 6997 | . 925 1284 1916 2872 Guns 3910 | . 418 . 1719 1773 Cannons 2769 | . 507 1203 152 907 Explosions 314 | . . 77 45 192 Melee . | . . . . . Ramming 4 | . . 4 . . Kinetic 59 | . 59 . . . Thermal 4143 | . 866 77 1644 1556 Explosive . | . . . . . Electromagnetic 2791 | . . 1203 272 1316 Impact . | . . . . . Slashing . | . . . . . Piercing . | . . . . . Highest Corruption 3 | . 2 . . 3 Average Corruption 2 | . 2 . . 2 Corruption Purged . | . . . . . Corruption Blocked . | . . . . . Effects 3 | . 2 . . 1 Message Errors 1 | . 1 . . . Matter Fused 1 | . . . . 1 Data Loss (major) 1 | . 1 . . . Overload Shots 22 | . . . . 22 Effects 2 | . . . . 2 Energy Bleed 1 | . . . . 1 Heat Surge 1 | . . . . 1 Overflow Damage 91 | . 12 23 9 47 Projectiles 72 | . 12 23 . 37 Explosions 19 | . . . 9 10 Melee . | . . . . . Knockbacks . | . . . . . Impact . | . . . . . Kinetic . | . . . . . Secondary . | . . . . . Self-Inflicted Damage 74 | . . 38 23 13 Shots 3 | . . 1 1 1 Rammed . | . . . . . Targets Rammed 1 | . . 1 . . Kicked . | . . . . . Crushed 1 | . . 1 . . Highest Temperature 398 | . 398 111 375 317 Average Temperature 82 | . 92 27 103 82 Received Heat Transfer 1149 | . 180 186 459 324 Effects 6 | . 4 . 1 1 Shutdowns 1 | . 1 . . . Energy Bleed 1 | . . . . 1 Interference 3 | . 3 . . . Matter Decay 1 | . . . 1 . Siege Activations . | . . . . . Martial Activations . | . . . . . Shielding Activations . | . . . . . Robots Disrupted . | . . . . . Combat Hostiles . | . . . . . Robots Corrupted 1 | . . 1 . . Combat Hostiles 1 | . . 1 . . Parts Fried 11 | . . 6 . 5 Impact Corruptions . | . . . . . Robots Melted 1 | . . . 1 . Combat Hostiles . | . . . . . Parts Melted 13 | . 5 . 6 2 Heat Transferred 8511 | . 2146 100 4144 2121 Parts Sabotaged . | . . . . . Parts Stolen . | . . . . . Parts Stripped . | . . . . . Power Chain Reactions 5 | . . 2 1 2 Alert | -11 -10 -9 -8 -7 ------- Run | Yrd Mat Mat Mat Fac Maximum Alert Level 2 | . 1 . 1 2 Low Security (%) 81 | 100 93 100 93 44 Level 1 16 | . 6 . 6 50 Level 2 1 | . . . . 5 Level 3 . | . . . . . Level 4 . | . . . . . Level 5 . | . . . . . High Security . | . . . . . Max Security . | . . . . . Peak Influence 495 | . 217 159 264 495 Initial 113 | . . 37 35 113 Average 117 | . 90 64 89 223 Influence Increases 2624 | . 413 534 671 1006 Destroy 0b10 Robot/C 1340 | . 280 260 380 420 Destroy 0b10 Robot/NC 210 | . 30 50 65 65 Destroy Leader 344 | . 70 86 100 88 Allied During Kill 12 | . . . . 12 Successful Hack 39 | . . 12 . 27 Disable Machine 75 | . . 30 15 30 Destroy Structure 34 | . 3 6 6 19 Partial Spotted 75 | . 15 15 15 30 Lose Combat Pursuer 495 | . 15 75 90 315 Influence Decreases 2149 | . 323 539 506 781 Entered New Map 240 | . . 53 50 137 Time Decay 1649 | . 313 486 356 494 Lost Part 240 | . 10 . 100 130 Lost Ally 20 | . . . . 20 Squads Dispatched 14 | . 2 . 2 10 Investigation 5 | . 1 . 1 3 Extermination 3 | . . . . 3 Reinforcement 6 | . 1 . 1 4 Assault . | . . . . . Garrison . | . . . . . Intercept . | . . . . . Searches Triggered . | . . . . . Construction Impeded . | . . . . . Haulers Reinforced 1 | . . . . 1 Active Scanning Responses . | . . . . . Cargo Convoy Interrupts 1 | . . . . 1 Stealth | -11 -10 -9 -8 -7 --------- Run | Yrd Mat Mat Mat Fac Distress Signals 7 | . 2 2 2 1 Communications Jammed . | . . . . . Distress Signals . | . . . . . Times Spotted 144 | . 16 24 33 71 Peak Tracking Total 13 | . 6 6 7 13 Tactical Retreats 16 | . 1 3 3 9 Traps | -11 -10 -9 -8 -7 ------- Run | Yrd Mat Mat Mat Fac Traps Triggered 6 | . 2 . 1 3 Indirectly . | . . . . . Trap Hack Attempts . | . . . . . Triggered . | . . . . . Disarmed . | . . . . . Reprogrammed . | . . . . . Reused . | . . . . . Traps Extracted . | . . . . . Installed . | . . . . . Triggered . | . . . . . Machines | -11 -10 -9 -8 -7 ---------- Run | Yrd Mat Mat Mat Fac Machines Disabled 5 | . . 2 1 2 Max in Single Turn 1 | . . 1 1 1 Machines Repaired . | . . . . . Machines Dismantled . | . . . . . Machines Sabotaged . | . . . . . Overloaded Fab Kills . | . . . . . Hacking | -11 -10 -9 -8 -7 --------- Run | Yrd Mat Mat Mat Fac Machines Accessed 11 | . 2 3 1 5 Terminals 5 | . 2 2 . 1 Fabricators 2 | . . . . 2 Repair Stations . | . . . . . Recycling Units 1 | . . . . 1 Scanalyzers 3 | . . 1 1 1 Garrison Access . | . . . . . Total Hacks 23 | . 3 8 1 11 Successful 16 | . 1 5 1 9 Failed 7 | . 2 3 . 2 Catastrophic 1 | . 1 . . . Database Lockouts . | . . . . . Manual 1 | . 1 . . . Terminals 8 | . 3 4 . 1 Fabricators 6 | . . . . 6 Repair Stations . | . . . . . Recycling Units 1 | . . . . 1 Scanalyzers 8 | . . 4 1 3 Garrison Access . | . . . . . Terminal Hacks 5 | . 1 3 . 1 Robot Analysis 2 | . . 2 . . Open DSF 1 | . . . . 1 Surveillance Status 1 | . 1 . . . Zone Layout 1 | . . 1 . . Fabricator Hacks 4 | . . . . 4 Load Schematic 2 | . . . . 2 Build 2 | . . . . 2 Repair Station Hacks . | . . . . . Recycling Unit Hacks 1 | . . . . 1 Report Inventory 1 | . . . . 1 Scanalyzer 6 | . . 2 1 3 Insert Component 2 | . . 1 . 1 Analyze 3 | . . 1 . 2 Retrieve Study 1 | . . . 1 . Garrison Access Hacks . | . . . . . Unauthorized Hacks . | . . . . . Terminals . | . . . . . Fabricators . | . . . . . Repair Stations . | . . . . . Recycling Units . | . . . . . Scanalyzers . | . . . . . Garrison Access . | . . . . . Data Cores Recovered 4 | . . 2 . 2 Used . | . . . . . Hacking Detections 8 | . 1 2 . 5 Full Trace Events 3 | . . . . 3 Feedback Events . | . . . . . Feedback Blocked . | . . . . . Robot Schematics Acquired . | . . . . . Robots Built . | . . . . . Authchips . | . . . . . Time . | . . . . . Total Robot Build Rating . | . . . . . Part Schematics Acquired 2 | . . 1 . 1 Parts Built 2 | . . . . 2 Authchips . | . . . . . Time 170 | . . . . 170 Total Part Build Rating 6 | . . . . 6 Part Studies Acquired 1 | . . . 1 . Parts Repaired . | . . . . . Time . | . . . . . Parts Recycled . | . . . . . Recycled Matter . | . . . . . Retrieved Matter . | . . . . . Retrieved Components . | . . . . . Parts Scanalyzed 2 | . . 1 . 1 Part Schematics Acquired 2 | . . 1 . 1 Parts Damaged . | . . . . . Bothacking | -11 -10 -9 -8 -7 ------------ Run | Yrd Mat Mat Mat Fac Used RIF Installer . | . . . . . Robots Hacked . | . . . . . Non-combat . | . . . . . Combat . | . . . . . Robot Hacks Applied . | . . . . . Relay Couplers Released . | . . . . . Fabnet Peak Effective % . | . . . . . Robots Rewired 1 | . . . . 1 Allies Hacked . | . . . . . Hacks Repelled . | . . . . . Allies | -11 -10 -9 -8 -7 -------- Run | Yrd Mat Mat Mat Fac Total Allies 1 | . . . . 1 Largest Group 1 | . . . . 1 Highest-Rated Group 21 | . . . . 21 Highest-Rated Ally 21 | . . . . 21 Total Orders . | . . . . . Ally Attacks 22 | . . . . 22 Total Damage 395 | . . . . 395 Kills 7 | . . . . 7 Allies Corrupted . | . . . . . Allies Melted . | . . . . . Intel | -11 -10 -9 -8 -7 ------- Run | Yrd Mat Mat Mat Fac Active Infowar (turns) 140 | . 140 . . . ECM 140 | . 140 . . . Robot Analysis Total 2 | . . 2 . . Derelict Logs Recovered . | . . . . . Drone Launches . | . . . . . Drone Recoveries . | . . . . . Exploration | -11 -10 -9 -8 -7 ------------- Run | Yrd Mat Mat Mat Fac Turns Passed 4714 | 72 1051 1461 816 1314 Spaces Moved 3744 | 51 578 763 505 1847 Core 18 | 4 . . 8 6 Treads 743 | . . 743 . . Legs 715 | 47 578 20 70 . Wheels . | . . . . . Hover . | . . . . . Flight 2268 | . . . 427 1841 Fastest Speed 24 | 50 120 120 26 24 Average Speed 85 | 122 120 169 102 34 Slowest Speed 450 | 190 120 250 450 400 Overloaded Moves 97 | . . . . 97 Propulsion Burnouts . | . . . . . Robots Hopped 10 | . . . . 10 Potential Cave-ins . | . . . . . Cave-ins Triggered . | . . . . . Exploration Rate (%) 40 | 4 87 55 27 31 Regions Visited 4 Branch Regions . Pre-discovered Areas . | . . . . . Known Exits Taken . | . . . . . Unknown Exits Taken 4 | 1 1 1 1 . Scrap Searched . | . . . . . Spaces Dug 5 | . . . . 5 Terrain Destroyed 26 | . . 6 4 16 Melee . | . . . . . Projectile 10 | . . . . 10 AOE 16 | . . 6 4 6 Terrain Rammed . | . . . . . Walls Destroyed . | . . . . . Machines Disabled . | . . . . . Actions | -11 -10 -9 -8 -7 --------- Run | Yrd Mat Mat Mat Fac Total 4735 | 57 809 862 649 2358 Wait 551 | . 152 27 5 367 Move 3720 | 50 577 762 504 1827 Hop 10 | . . . . 10 Pick Up 42 | 1 5 12 13 11 Fast Attach 22 | 6 2 1 6 7 Attach 18 | . . 1 8 9 Detach 5 | . . . . 5 Swap 46 | . 5 10 16 15 Drop 37 | . . 11 11 15 Fire 280 | . 68 37 86 89 Melee . | . . . . . Ram . | . . . . . Kick . | . . . . . Crush 1 | . . 1 . . Escape Stasis . | . . . . . Rewire 3 | . . . . 3 Trap . | . . . . . Miscellaneous . | . . . . . Route ------- -11/Scrapyard -10/Materials (discovered 5 exits: *Mat x3 / [*Min] / [*Sub]) -9/Materials (discovered 4 exits: *Mat x2 / [*Min] / [*Sto]) -8/Materials -7/Factory (discovered 1 exit: [*Fac]) History --------- Turn | Location | Event 36 | -11/Scrapyard | Discovered new exit (range 12) 73 | -11/Scrapyard | Entered Materials 307 | -10/Materials | Build established: Mutant 463 | -10/Materials | Discovered new exit (range 4) 520 | -10/Materials | Discovered new exit (range 13) 602 | -10/Materials | Discovered new exit (range 10) 776 | -10/Materials | Discovered new exit (range 12) 1016 | -10/Materials | Build established: Scavenger-Mutant 1025 | -10/Materials | Discovered new exit (range 15) 1124 | -10/Materials | Entered another Materials area 1124 | -9/Materials | Evolved 2 slots: Utility x2 1303 | -9/Materials | Discovered new exit (range 9) 1416 | -9/Materials | Build established: Mutant 1574 | -9/Materials | Discovered new exit (range 9) 1738 | -9/Materials | Discovered new exit (range 6) 2389 | -9/Materials | Discovered new exit (range 13) 2585 | -9/Materials | Entered another Materials area 2585 | -8/Materials | Evolved 2 slots: Propulsion x2 2848 | -8/Materials | Lost 5 parts (2n3w) 3361 | -8/Materials | Discovered new exit (range 13) 3401 | -8/Materials | Entered Factory 3401 | -7/Factory | Evolved 2 slots: Power x1, Utility x1 3807 | -7/Factory | Fabricated Cesium-ion Thruster (x2) 3994 | -7/Factory | Lost 3 parts (1n1u1w) 4308 | -7/Factory | Build established: Sprinter 4556 | -7/Factory | Discovered new exit (range 9) 4562 | -7/Factory | Cargo convoy interrupted 4652 | -7/Factory | Core integrity fell below 50% 4683 | -7/Factory | Core integrity fell below 20% 4699 | -7/Factory | Lost 6 parts (1p2n2u1w) 4715 | -7/Factory | Destroyed by H-55 Commando with Assault Rifle Last Messages --------------- 04682_ Triggered Heavy Explosive Trap. 04682_ An explosion rips through the floor. 04682_ Nuclear Reactor explodes. 04682_ Terminal disabled. 04682_ T-07 Excavator destroyed. 04683_ Acquired Mic. Nuclear Core. 04686_ Dropped Mic. Nuclear Core. 04699_ X-57 Shotgunner destroyed. 04707_ Chain reaction triggered in Lgt. Nuclear Core. 04707_ G-47 Trooper destroyed. 04708_ Critical hit (Burn: +37). 04709_ ALERT: Potential suspicious activity detected, Programmers report to Factory Zone 3S. 04709_ Penetrated by Slug. 04710_ The unstable cave ceiling collapses. 04712_ Penetrated by Slug. 04712_ Adv. Weight Redist. System destroyed. 04714_ Overheating: Energy bleed (-25). 04715_ Penetrated by Slug. 04715_ Mic. Nuclear Core destroyed. Map ----- +----------------------------------------------------+ | ######## #????????????????????? | | #??????# #????????????????????? | | #??????########+########????????????????????? | | #""###???????????# ##############????????????? | | ##"##????????????# # #????????????? | | #????????????# # """ """ #?????? #????? | | = "############## + """ """ ### #????? | | T# " # """ """ + #????? | | "# """ " " " !# # # #????? | | # "G " " " # "############# #????? | | #+### """ " " " " "%" ???? #??? | | # " " " " " ??? #??? | | # " " " + " ???? < #??? | | ! # " " " # "%" ???? #??? | | # " " " # " ????? #??? | | # " " " # ############?#???##+####??? | | # " " " # # #????????????? | | # # # """ """ #????????????? | | # # + """ """ #????????????? | | ##"+########## # """ """ #????????????? | | # # # #????????????? | | = # # # """ """ #????????????? | | # # # """ """ #????????????? | | ##### # # """ """ #????????????? | | #?# # # #????????????? | | ### + # @ #????????????? | | / # # #????????????? | | ### # # ! #????????????? | | #?# # #######????????????? | | #?# # = [#????????????????? | | #?# # #????????????????? | | #?# *= # *=]#????????????????? | | #######/######## =]#????????????????? | | # = #????# i ! = = #????????????????? | | # #????# =[%* #????????????????? | | # #????# =x! # #????????????????? | | # #????# x g " #????????????????? | | ####+########### """"" #????????????????? | | h ##########????????????????? | | #?????????????????????????? | | #?????????????????????????? | | #?????????????????????????? | | #?????????????????????????? | | #######/################?????????????????????????? | | ## #??????????????????????????????????? | | # #??????????????????????????????????? | | #??????????????????????????????????? | | #??????????????????????????????????? | | #??????????????????????????????????? | | #! #??????????????????????????????????? | +----------------------------------------------------+ Best States ------------- Heat Dissipation 61 Energy Generation 25 Energy Capacity 325 Matter Stores 300 Matter Capacity 300 Sight Range 16 Terrain Scan Density 10 ECM Strength 1 Additional Mass Support 9 Evasion (%) 64 Targeting Accuracy 16 Recoil Reduction 2 Item Schematics ----------------- Cesium-ion Thruster | -9/Materials | Scanalyzed Cld. VTOL Module | -7/Factory | Scanalyzed Robot Schematics ------------------ None Fabricated ------------ Cesium-ion Thruster | x2 | -7/Factory Repaired ---------- Nothing Studied --------- Cesium-ion Thruster | -8/Materials | Hacked Alien Tech Used ----------------- None Achievements -------------- None Challenges ------------ None Game ------ Seed BorgArmageddonImmobilizer Manual? 0 Play Time 00:49:34 Cumulative 45.5 hours Start 2026.04.08 @ 23:55:18 End 2026.04.09 @ 00:45:43 Sessions 1 Manual Loads 0 Difficulty Rogue Special Mode None Game No. 79 Rogue 79 Adventurer 0 Explorer 0 Win Type - Total 0 Types 0/0/0/0/0/0/0/0/0/0 Lore% 16 Gallery% 24 Achievement% 20 Wizard Run 0 Options --------- Layout 0 ASCII 0 Keyboard 0 Movement Mouse Keybinds 0 Fullscreen 1 Font 24/Smallcaps Map View 38x25 Zoom Use 99% Tactical HUD 1 Map Filters NONE Filters NONE Steam 1 RUN: 24d402f1-bb48-4c53-9363-28c4b12b2cfd